Cogmind - Beta 12 @@@ ROGUE MODE // 2023.06.18 @ 16:15:32 Player: szymekc Result: Destroyed by P-70 Sage with Tesla Rifle Performance ------------- Evolutions (6) 3000 Regions Visited (23) 4600 Robots Destroyed (166) 830 Value Destroyed (5802) 5802 Prototype IDs (41) 820 Alien Tech Used (2) 400 Bonus (1707) 1707 TOTAL SCORE: 17159 Bonus ------- High Alert Combat Kills 895 Follower Combat Kills 176 Entered Garrisons 200 Met Data Miner 300 Met Imprinter 300 Met Zhirov 300 Friendly Fire -464 Cogmind --------- Core Integrity 0/1150 Matter 10/300 Energy 49/150 System Corruption 13% Temperature Cool (0) Movement Flying (40) Location -4/Factory Parts ------- > --- POWER (2) -------- Micro Fission Core > --- PROPULSION (5) --- Cooled Field Propulsion Drive > --- UTILITY (10) ----- Enhanced Optical Array Advanced Signal Interpreter Graphene Brace Advanced Hacking Suite Advanced System Shield > --- WEAPON (2) ------- (None) > --- INVENTORY (5) ---- Advanced Weight Redist. System Advanced Sensor Array Advanced ECM Suite Peak State ------------ > --- POWER ------------ Fusion Compressor Micro Fission Core > --- PROPULSION ------- Improved VTOL Module Cooled VTOL Module Nuclear Pulse Thruster Improved Surge Thruster Biomechanical Wings > --- UTILITY ---------- Small Storage Unit Advanced Sensor Array Advanced Signal Interpreter Advanced Transmission Jammer Graphene Brace Improved Hacking Suite Advanced Hacking Suite Advanced Hacking Suite Advanced Hacking Suite Advanced System Shield > --- WEAPON ----------- Mini Smartbomb Launcher CR-A16's Pointy Stick > --- INVENTORY -------- Nuclear Pulse Thruster Cooled Field Propulsion Drive Experimental Cooling System Advanced Weight Redist. System Advanced ECM Suite Advanced Reaction Control System Advanced Datajack [Rating: 105] Favorites ----------- Power Light Nuclear Core Engine Light Angular Momentum Engine Power Core Light Nuclear Core Reactor Light Antimatter Reactor Propulsion Light Treads Treads Light Treads Leg Aluminum Leg Wheel Armored Wheel Hover Unit Gravmag Array Flight Unit Cooled VTOL Module Utility Hacking Suite Device Advanced Weight Redist. System Storage Huge Storage Unit Processor Advanced Targeting Computer Hackware Hacking Suite Protection Layered Light Armor Plating Weapon Heavy Assault Rifle Energy Gun Medium Laser Ballistic Gun Heavy Assault Rifle Ballistic Cannon Assault Cannon Launcher Mini Smartbomb Launcher Special Weapon Improved Remote Datajack Impact Weapon Hammer Slashing Weapon Greatsword Piercing Weapon CR-A16's Pointy Stick Build | -11 -10 -9 -9 -8 -8 -8 -7 -7 -7 -7 -6 -6 -6 -6 -5 -5 -5 -5 -5 -5 -5 -4 -4 ------- Run | Jun Mat Mat Min Mat Gar Mat Fac Low Low Dat Pro Fac Low Zio Pro Fac Was Fac Upp Upp Zhi Pro Fac Slots Evolved 12 | . . 2 . 2 . . 2 . . . . 2 . . . 2 . . . . . . 2 Power 1 | . . . . . . . . . . . . 1 . . . . . . . . . . . Propulsion 3 | . . 1 . 1 . . . . . . . . . . . 1 . . . . . . . Utility 8 | . . 1 . 1 . . 2 . . . . 1 . . . 1 . . . . . . 2 Weapon . | . . . . . . . . . . . . . . . . . . . . . . . . Parts Attached 385 | . 26 44 1 3 48 55 63 2 3 . . 43 1 2 3 14 . 39 2 3 7 . 26 Power 44 | . 2 4 . . 3 5 2 . . . . 11 . 1 1 1 . 4 . . 2 . 8 Engine 12 | . 2 3 . . . 2 1 . . . . 1 . . 1 . . 2 . . . . . Core 29 | . . 1 . . 3 3 1 . . . . 10 . 1 . 1 . 2 . . 1 . 6 Reactor 3 | . . . . . . . . . . . . . . . . . . . . . 1 . 2 Propulsion 96 | . 8 9 . 1 14 17 24 . . . . 10 . . 1 1 . 5 . . 1 . 5 Treads 54 | . 8 8 . 1 13 14 10 . . . . . . . . . . . . . . . . Leg 1 | . . 1 . . . . . . . . . . . . . . . . . . . . . Wheel 1 | . . . . . . 1 . . . . . . . . . . . . . . . . . Hover 5 | . . . . . . . . . . . . 4 . . . . . . . . 1 . . Flight 35 | . . . . . 1 2 14 . . . . 6 . . 1 1 . 5 . . . . 5 Utility 144 | . 5 16 . 1 9 8 21 2 3 . . 20 1 . 1 11 . 26 2 3 3 . 12 Device 62 | . 1 4 . . 1 1 4 1 1 . . 9 . . . 8 . 18 2 2 1 . 9 Storage 4 | . 1 . . . . 1 . . . . . . . . . . . 1 . . 1 . . Processor 14 | . . 4 . 1 . . 3 . . . . 3 1 . . 1 . . . . . . 1 Hackware 14 | . . . . . . . 3 . . . . 3 . . 1 1 . 3 . . 1 . 2 Protection 50 | . 3 8 . . 8 6 11 1 2 . . 5 . . . 1 . 4 . 1 . . . Artifact . | . . . . . . . . . . . . . . . . . . . . . . . . Weapon 101 | . 11 15 1 1 22 25 16 . . . . 2 . 1 . 1 . 4 . . 1 . 1 Energy Gun 1 | . . 1 . . . . . . . . . . . . . . . . . . . . . Energy Cannon . | . . . . . . . . . . . . . . . . . . . . . . . . Ballistic Gun 36 | . 7 5 . 1 7 13 3 . . . . . . . . . . . . . . . . Ballistic Cannon 13 | . . 4 . . 3 3 3 . . . . . . . . . . . . . . . . Launcher 25 | . 1 1 1 . 6 9 2 . . . . . . . . . . 3 . . 1 . 1 Special Weapon 2 | . . . . . . . 2 . . . . . . . . . . . . . . . . Impact Weapon 7 | . 3 1 . . . . 3 . . . . . . . . . . . . . . . . Slashing Weapon 12 | . . 3 . . 6 . 2 . . . . 1 . . . . . . . . . . . Piercing Weapon 5 | . . . . . . . 1 . . . . 1 . 1 . 1 . 1 . . . . . Special Melee Weapon . | . . . . . . . . . . . . . . . . . . . . . . . . Unidentified Prototypes 8 | . . 1 . . . 3 . . . . . . . . . . . 1 . . 3 . . Parts Lost 59 | . 1 8 . . 11 6 3 . . . . 14 . . . . . . . 1 . . 15 Power 11 | . 1 1 . . 3 2 . . . . . 2 . . . . . . . . . . 2 Propulsion 23 | . . 3 . . 3 3 1 . . . . 6 . . . . . . . 1 . . 6 Utility 20 | . . 4 . . 4 . 1 . . . . 5 . . . . . . . . . . 6 Weapon 5 | . . . . . 1 1 1 . . . . 1 . . . . . . . . . . 1 Highest Loss Streak 15 | . 1 4 . . 4 3 2 . . . . 5 . . . . . . . 1 . . 15 To Critical Strikes . | . . . . . . . . . . . . . . . . . . . . . . . . Average Slot Usage (%) 94 | . 97 95 100 98 99 98 93 92 92 92 92 85 76 80 83 86 88 92 100 98 94 100 81 Engine 5 | . 13 7 11 9 . 3 4 . . . . 2 . . . 5 5 4 5 5 5 5 1 Core 4 | . . 3 . . 8 5 2 7 7 7 7 7 13 13 13 5 5 5 5 5 5 5 5 Treads 17 | . 23 28 33 36 35 33 15 . . . . . . . . . . . . . . . . Flight 9 | . . . . . . . 13 30 30 30 30 17 20 20 23 22 23 23 29 27 23 23 19 Device 5 | . 1 4 . . 1 . 3 5 3 . . 11 13 13 6 15 17 10 5 10 10 11 13 Storage 6 | . 14 11 11 9 9 9 3 . . . . . . . . . . . 5 . 1 5 4 Processor 7 | . . 5 11 16 18 12 7 7 7 7 7 6 3 6 6 5 5 5 5 5 5 5 5 Hackware 10 | . . . . . . . 15 23 23 23 23 24 20 20 25 20 23 27 29 27 23 23 22 Protection 9 | . 11 11 11 9 7 14 13 8 11 15 15 2 6 6 6 3 . . . 1 3 . . Energy Gun 1 | . 4 2 . . . . . . . . . 1 . . . . . . . . . . . Ballistic Gun 7 | . 19 8 11 15 8 12 5 . . . . . . . . . . . . . . . . Ballistic Cannon 1 | . . 6 . . 3 2 . . . . . . . . . . . . . . . . . Launcher 1 | . . 1 11 2 1 2 . . . . . . . . . . . 3 5 5 3 5 3 Slashing Weapon 1 | . . 2 . . 4 . 2 7 7 7 7 5 . . . . . . . . . . . Naked Turns . | . . . . . . . . . . . . . . . . . . . . . . . . Heaviest Build 111 | 11 94 107 99 101 102 111 111 20 20 17 17 30 23 23 24 29 19 35 27 29 29 27 29 Greatest Support 112 | 20 40 60 60 80 80 112 112 28 28 20 28 37 24 24 31 31 31 37 27 30 30 30 36 Greatest Overweight (x) 27 | . 27 4 1 1 1 8 5 . . . . . . . 1 . . . . . . . 4 Average Overweight (x) . | . 1 1 1 1 1 1 . . . . . . . . . . . . . . . . . Largest Inventory Capacity 25 | 8 25 25 25 25 25 25 25 5 5 5 5 5 5 5 5 5 5 8 8 8 8 8 8 Average Capacity 16 | 8 22 25 25 25 25 25 15 5 5 5 5 5 5 5 5 5 5 5 8 5 5 8 7 Most Carried 25 | 6 22 25 25 24 25 25 25 5 5 5 5 5 5 5 5 5 5 8 8 8 8 8 8 Average Carried 15 | 6 15 23 25 23 23 24 15 4 5 5 4 4 4 4 4 4 4 5 8 5 5 7 7 Final Capacity 25 | 8 25 25 25 25 25 25 5 5 5 5 5 5 5 5 5 5 5 8 8 5 8 8 5 Final Carried 25 | 6 22 25 25 24 25 24 5 5 5 5 5 4 4 5 5 5 5 8 8 4 7 7 3 Class Distribution -------------------- 34% | Hacker-Sprinter 26% | Mutant 24% | Scavenger-Mutant 12% | Hacker-Mutant Dominant Class ---------------- Mutant | -10/Materials Scavenger-Mutant | -9/Materials Scavenger-Mutant | -9/Mines Scavenger-Mutant | -8/Materials Scavenger-Mutant | -8/Garrison Mutant | -8/Materials Hacker-Mutant | -7/Factory Hacker-Sprinter | -7/Lower Caves Hacker-Sprinter | -7/Lower Caves Hacker-Sprinter | -7/Data Miner Hacker-Sprinter | -6/Proximity Caves Hacker-Sprinter | -6/Factory Hacker-Sprinter | -6/Lower Caves Hacker-Sprinter | -6/Zion Hacker-Sprinter | -5/Proximity Caves Hacker-Sprinter | -5/Factory Hacker-Sprinter | -5/Waste Hacker-Sprinter | -5/Factory Hacker-Sprinter | -5/Upper Caves Hacker-Sprinter | -5/Upper Caves Hacker-Sprinter | -5/Zhirov Hacker-Sprinter | -4/Proximity Caves Wizard-Sprinter | -4/Factory Resources | -11 -10 -9 -9 -8 -8 -8 -7 -7 -7 -7 -6 -6 -6 -6 -5 -5 -5 -5 -5 -5 -5 -4 -4 ----------- Run | Jun Mat Mat Min Mat Gar Mat Fac Low Low Dat Pro Fac Low Zio Pro Fac Was Fac Upp Upp Zhi Pro Fac Matter Collected 7255 | 200 649 1222 292 . 930 1201 1091 101 46 . . 550 . 95 30 36 . 329 175 207 . 90 11 Remotely 620 | . . 196 . . 207 217 . . . . . . . . . . . . . . . . . Salvage Created 5801 | . 590 857 13 105 1248 1641 492 84 . . 62 192 . . . 36 . 193 134 59 . 95 . Parts 352 | . 26 60 1 2 74 112 26 5 . . 1 14 . . . 4 . 16 4 2 . 5 . Haulers Intercepted 7 | . 2 2 . . . 3 . . . . . . . . . . . . . . . . . Recyclers Shooed 10 | . . 7 . . . 2 . . . . . . . . . . . . . . . . 1 Parts Field Recycled . | . . . . . . . . . . . . . . . . . . . . . . . . Retrieved Matter . | . . . . . . . . . . . . . . . . . . . . . . . . Parts Self-Destructed 24 | . . . . . . . . . . . 9 . . . 9 . . . 2 4 . . . Prevented 3 | . . . . . . . . . . . . . . . . . . . . 2 . 1 . Kills | -11 -10 -9 -9 -8 -8 -8 -7 -7 -7 -7 -6 -6 -6 -6 -5 -5 -5 -5 -5 -5 -5 -4 -4 ------- Run | Jun Mat Mat Min Mat Gar Mat Fac Low Low Dat Pro Fac Low Zio Pro Fac Was Fac Upp Upp Zhi Pro Fac Combat Hostiles Destroyed 135 | . 11 25 4 2 31 38 14 . . . 1 3 . . . . . 4 1 1 . . . Melee 10 | . . . . . 4 . 2 . . . 1 3 . . . . . . . . . . . Guns 55 | . 11 8 . 2 11 18 5 . . . . . . . . . . . . . . . . Cannons 25 | . . 14 . . 4 4 3 . . . . . . . . . . . . . . . . AOE 45 | . . 3 4 . 12 16 4 . . . . . . . . . . 4 1 1 . . . Classes Destroyed 21 | . 4 5 1 . 4 5 1 . . . . . . . . . . . . . . 1 . Worker 6 | . . 2 . . . 3 1 . . . . . . . . . . . . . . . . Builder 5 | . 1 . . . . 4 . . . . . . . . . . . . . . . . . Tunneler 1 | . . . . . . . 1 . . . . . . . . . . . . . . . . Hauler 7 | . 2 2 . . . 3 . . . . . . . . . . . . . . . . . Recycler 2 | . 1 . . . . 1 . . . . . . . . . . . . . . . . . Mechanic 1 | . . . . . . 1 . . . . . . . . . . . . . . . . . Operator 1 | . . . . . . 1 . . . . . . . . . . . . . . . . . Watcher 7 | . . 2 . . . 1 . . . . . . . . . 1 . 3 . . . . . Swarmer 32 | . . 6 3 . 6 9 3 . . . . . . . . . . 4 . 1 . . . Cutter 2 | . . . . . 2 . . . . . . . . . . . . . . . . . . Saboteur 4 | . . . . . 4 . . . . . . . . . . . . . . . . . . Grunt 53 | . 11 10 . 2 8 17 4 . . . 1 . . . . . . . . . . . . Brawler 3 | . . 1 . . . 2 . . . . . . . . . . . . . . . . . Duelist 1 | . . . . . . 1 . . . . . . . . . . . . . . . . . Protector 2 | . . . . . . 2 . . . . . . . . . . . . . . . . . Sentry 23 | . . 8 . . 7 4 2 . . . . 1 . . . . . 1 . . . . . Hunter 4 | . . . . . 2 2 . . . . . . . . . . . . . . . . . Programmer 11 | . . . . . 2 . 5 . . . . 3 . . . . . . 1 . . . . Heavy 1 | . . . . . . 1 . . . . . . . . . . . . . . . . . Decomposer 5 | . . . . . . . . 3 . . . . . . . . . . . 2 . . . Samaritan 2 | . . . . . . . . . . . . . . . . . . . . . . 2 . Assembled 1 | . . . 1 . . . . . . . . . . . . . . . . . . . . Best Kill Streak 8 | . 4 7 3 2 8 8 3 . . . 1 1 . . . 1 . 4 1 1 . . . Combat Bots Only 8 | . 2 6 3 2 8 5 3 . . . 1 1 . . . . . 4 1 1 . . . Max Kills in Single Turn 4 | . 1 2 3 1 4 3 2 1 . . 1 1 . . . 1 . 4 1 1 . 1 . Gunslinging . | . . . . . . . . . . . . . . . . . . . . . . . . Exploded 4 | . . 1 3 . 4 3 2 . . . . . . . . . . 4 1 1 . . . Melee 1 | . . . . . 1 . 1 . . . 1 1 . . . . . . . . . . . Uniques/NPCs Destroyed . | . . . . . . . . . . . . . . . . . . . . . . . . Combat | -11 -10 -9 -9 -8 -8 -8 -7 -7 -7 -7 -6 -6 -6 -6 -5 -5 -5 -5 -5 -5 -5 -4 -4 -------- Run | Jun Mat Mat Min Mat Gar Mat Fac Low Low Dat Pro Fac Low Zio Pro Fac Was Fac Upp Upp Zhi Pro Fac Damage Taken 13606 | . 393 1532 70 240 2183 2828 1829 13 122 . . 1636 . . 144 82 . 266 . 93 . . 2175 Core 2747 | . 32 112 . 18 191 237 315 . 74 . . 464 . . 16 18 . 89 . 25 . . 1156 Absorbed by Shields 49 | . . . . . . . 49 . . . . . . . . . . . . . . . . Redirected to Shielding 36 | . . . . . . . 36 . . . . . . . . . . . . . . . . Regen/Repaired (Parts) 1715 | . 32 . . . . 269 994 . . . . 197 . . . 120 . 103 . . . . . Core Remaining (%) 63 | 100 87 . 72 . . 18 . . . . 44 . . . 43 . . . . . . 78 . Volleys Fired 330 | . 48 93 3 6 45 91 37 . . . . . . . . . . 2 4 1 . . . Largest 2 | . 2 2 1 2 2 2 2 . . . . . . . . . . 1 1 1 . . . Hottest 88 | . 70 88 30 46 88 72 69 . . . . . . . . . . 80 80 80 . . . Shots Fired 596 | . 89 169 4 12 87 169 59 . . . . . . . . . . 2 4 1 . . . Gun 409 | . 87 72 1 12 69 127 41 . . . . . . . . . . . . . . . . Cannon 134 | . . 94 . . 11 20 9 . . . . . . . . . . . . . . . . Launcher 52 | . 2 3 3 . 7 22 8 . . . . . . . . . . 2 4 1 . . . Special 1 | . . . . . . . 1 . . . . . . . . . . . . . . . . Kinetic 499 | . 66 143 1 12 80 147 50 . . . . . . . . . . . . . . . . Thermal 44 | . 21 23 . . . . . . . . . . . . . . . . . . . . . Explosive 52 | . 2 3 3 . 7 22 8 . . . . . . . . . . 2 4 1 . . . Electromagnetic . | . . . . . . . . . . . . . . . . . . . . . . . . Robot Hit Streak 33 | . 14 19 . 9 33 19 16 . . . . . . . . . . 7 . . . . . Robot Miss Streak 6 | . 3 6 1 2 2 2 3 . . . . . . . . . . . . . . . . Penetration Max 1 | . . . . . . 1 . . . . . . . . . . . . . . . . . Secondary Targets 5 | . 1 1 . . 1 2 . . . . . . . . . . . . . . . . . Max Gunslinging Chain 1 | . 1 1 . . 1 1 . . . . . . . . . . . . . . . . . Shots Hit Robots 493 | . 64 114 . 10 95 127 46 3 . . 4 9 . . . 1 . 5 3 2 . 3 7 Core Hits 295 | . 28 44 3 6 73 91 24 3 . . . 4 . . . 1 . 9 5 1 . 1 2 Critical Kills 2 | . 1 . . . 1 . . . . . . . . . . . . . . . . . . Critical Parts Destroyed 1 | . . . . . . 1 . . . . . . . . . . . . . . . . . Critical Strikes 24 | . 3 4 . . 12 1 3 . . . . 1 . . . . . . . . . . . Burn 3 | . 2 1 . . . . . . . . . . . . . . . . . . . . . Destroy 3 | . 1 . . . 1 1 . . . . . . . . . . . . . . . . . Blast 6 | . . 3 . . 1 . 2 . . . . . . . . . . . . . . . . Sever 12 | . . . . . 10 . 1 . . . . 1 . . . . . . . . . . . Melee Attacks 326 | . 10 12 . . 47 3 39 3 1 . 5 92 . 1 . 13 . 63 4 4 . 3 26 Impact 15 | . 10 1 . . . . 4 . . . . . . . . . . . . . . . . Slashing 187 | . . 11 . . 47 3 33 3 1 . 5 84 . . . . . . . . . . . Piercing 124 | . . . . . . . 2 . . . . 8 . 1 . 13 . 63 4 4 . 3 26 Sneak Attacks 22 | . 1 1 . . 3 . 1 3 . . 2 2 . . . 1 . 2 1 2 . 3 . Combat Hostiles 2 | . . . . . . . . . . . 2 . . . . . . . . . . . . Follow-up Attacks . | . . . . . . . . . . . . . . . . . . . . . . . . Damage Inflicted 16940 | . 896 2642 241 151 3086 5076 1678 361 . . 291 549 . . . 67 . 807 416 190 . 220 269 Guns 4932 | . 787 827 . 151 801 1842 524 . . . . . . . . . . . . . . . . Cannons 2239 | . . 1389 . . 232 399 219 . . . . . . . . . . . . . . . . Explosions 5997 | . . 311 241 . 1362 2785 568 . . . . . . . . . . 531 156 43 . . . Melee 3569 | . 71 50 . . 691 . 358 361 . . 291 549 . . . 67 . 276 260 147 . 220 228 Ramming 203 | . 38 65 . . . 50 9 . . . . . . . . . . . . . . . 41 Kinetic 6710 | . 597 1957 . 151 1021 2241 743 . . . . . . . . . . . . . . . . Thermal 586 | . 190 259 . . . . 137 . . . . . . . . . . . . . . . . Explosive 5726 | . . 311 241 . 1362 2651 431 . . . . . . . . . . 531 156 43 . . . Electromagnetic 134 | . . . . . . 134 . . . . . . . . . . . . . . . . . Impact 83 | . 71 . . . 12 . . . . . . . . . . . . . . . . . . Slashing 2300 | . . 50 . . 691 . 358 361 . . 291 549 . . . . . . . . . . . Piercing 1198 | . . . . . . . . . . . . . . . . 67 . 276 260 147 . 220 228 Highest Corruption 13 | . . 7 7 . 1 1 4 4 4 4 4 8 8 8 . . 8 8 . . . . 13 Average Corruption 3 | . . 6 7 . 1 1 2 4 4 4 4 3 8 8 . . 8 7 . . . . 7 Corruption Purged 8 | . . . . . . . . . . . . . . . . . . 8 . . . . . Corruption Blocked . | . . . . . . . . . . . . . . . . . . . . . . . . Effects 195 | . . 52 19 . 4 20 42 3 3 . 7 2 1 . . . . 33 . . . . 9 Message Errors 41 | . . 13 4 . . 3 11 1 2 . . 2 . . . . . 4 . . . . 1 Matter Fused 43 | . . 8 6 . 1 2 12 1 1 . 1 . . . . . . 10 . . . . 1 Heat Flow Errors 29 | . . 7 1 . 1 2 6 . . . 2 . 1 . . . . 7 . . . . 2 Energy Discharges 31 | . . 8 4 . . 5 5 1 . . 2 . . . . . . 5 . . . . 1 Parts Rejected 1 | . . 1 . . . . . . . . . . . . . . . . . . . . . Parts Fused 2 | . . . . . . . . . . . 1 . . . . . . 1 . . . . . Data Loss (minor) 28 | . . 5 3 . 1 7 5 . . . 1 . . . . . . 6 . . . . . Data Loss (major) 8 | . . 5 . . . 1 1 . . . . . . . . . . . . . . . 1 Misfires 6 | . . 4 1 . 1 . . . . . . . . . . . . . . . . . . Alerts 3 | . . 1 . . . . 2 . . . . . . . . . . . . . . . . Misdirections 3 | . . . . . . . . . . . . . . . . . . . . . . . 3 Overload Shots . | . . . . . . . . . . . . . . . . . . . . . . . . Overflow Damage 707 | . 31 56 19 . 41 55 71 . . . 101 3 . . . . . 45 79 120 . 79 7 Projectiles 15 | . . 15 . . . . . . . . . . . . . . . . . . . . . Explosions 172 | . . 9 19 . 41 50 8 . . . . . . . . . . 45 . . . . . Melee 520 | . 31 32 . . . 5 63 . . . 101 3 . . . . . . 79 120 . 79 7 Knockbacks 20 | . . 8 . . 2 8 . . . . . . . . . . . . . . . . 2 Impact 2 | . . . . . . . . . . . . . . . . . . . . . . . 2 Kinetic 15 | . . 6 . . 2 7 . . . . . . . . . . . . . . . . . Secondary 3 | . . 2 . . . 1 . . . . . . . . . . . . . . . . . Self-Inflicted Damage 901 | . . 39 45 . 64 381 356 . . . . . . . . . . . . . . . 16 Shots 19 | . . 1 1 . 3 10 4 . . . . . . . . . . . . . . . . Rammed 33 | . 5 9 . . . 4 . . . . . . . . . . . . . . . . 15 Targets Rammed 41 | . 10 10 . . . 5 1 . . . . . . . . . . . . . . . 15 Kicked 5 | . 5 . . . . . . . . . . . . . . . . . . . . . . Crushed 3 | . . 1 . . . 1 1 . . . . . . . . . . . . . . . . Highest Temperature 352 | . 165 352 232 4 234 219 296 280 248 . 220 342 226 . 205 14 32 277 204 89 . . 204 Average Temperature 78 | . 38 113 117 2 40 54 89 122 113 . 86 91 188 . 95 6 18 79 61 34 . . 91 Received Heat Transfer 2702 | . 222 474 . 144 585 738 326 9 18 . . 48 . . 36 . . 27 . 18 . . 57 Effects 8 | . . . . . . . 2 . 1 . . 4 . . 1 . . . . . . . . Shutdowns 1 | . . . . . . . . . . . . 1 . . . . . . . . . . . Energy Bleed 1 | . . . . . . . . . . . . 1 . . . . . . . . . . . Interference 6 | . . . . . . . 2 . 1 . . 2 . . 1 . . . . . . . . Siege Activations . | . . . . . . . . . . . . . . . . . . . . . . . . Robots Corrupted . | . . . . . . . . . . . . . . . . . . . . . . . . Combat Hostiles . | . . . . . . . . . . . . . . . . . . . . . . . . Parts Fried 3 | . 1 1 . . . 1 . . . . . . . . . . . . . . . . . Impact Corruptions 5 | . 2 2 . . . 1 . . . . . . . . . . . . . . . . . Robots Melted . | . . . . . . . . . . . . . . . . . . . . . . . . Combat Hostiles . | . . . . . . . . . . . . . . . . . . . . . . . . Parts Melted 3 | . 1 2 . . . . . . . . . . . . . . . . . . . . . Heat Transferred 1493 | . 703 740 . . . . 50 . . . . . . . . . . . . . . . . Parts Sabotaged . | . . . . . . . . . . . . . . . . . . . . . . . . Parts Stolen . | . . . . . . . . . . . . . . . . . . . . . . . . Parts Stripped . | . . . . . . . . . . . . . . . . . . . . . . . . Power Chain Reactions . | . . . . . . . . . . . . . . . . . . . . . . . . Missiles Intercepted . | . . . . . . . . . . . . . . . . . . . . . . . . Alert | -11 -10 -9 -9 -8 -8 -8 -7 -7 -7 -7 -6 -6 -6 -6 -5 -5 -5 -5 -5 -5 -5 -4 -4 ------- Run | Jun Mat Mat Min Mat Gar Mat Fac Low Low Dat Pro Fac Low Zio Pro Fac Was Fac Upp Upp Zhi Pro Fac Peak Influence 1060 | . 218 331 186 41 930 1018 1060 . . . . 416 . . . 191 108 279 . . . . 135 Initial 462 | . . 6 110 5 3 453 462 . . . . 113 . . . 56 33 75 . . . . . Average 327 | . 48 188 112 11 494 705 611 . . . . 233 . . . 112 56 86 . . . . 43 Maximum Alert Level 3 | . 1 1 . . 3 3 3 . . . . 2 . . . . . 1 . . . . . Low Security (%) 45 | 100 96 46 100 100 24 . . . . . . 31 . . . 100 100 94 . . . . 100 Level 1 19 | . 3 53 . . 14 . 10 . . . . 66 . . . . . 5 . . . . . Level 2 22 | . . . . . 37 63 55 . . . . 1 . . . . . . . . . . . Level 3 13 | . . . . . 23 36 34 . . . . . . . . . . . . . . . . Level 4 . | . . . . . . . . . . . . . . . . . . . . . . . . Level 5 . | . . . . . . . . . . . . . . . . . . . . . . . . High Security . | . . . . . . . . . . . . . . . . . . . . . . . . Max Security . | . . . . . . . . . . . . . . . . . . . . . . . . Squads Dispatched 39 | . 3 2 . 2 . 7 8 . 1 . . 7 . . . . . 7 . . . . 2 Investigation 15 | . 1 2 . . . . 2 . . . . 5 . . . . . 5 . . . . . Extermination 8 | . . . . . . . 3 . . . . 1 . . . . . 2 . . . . 2 Reinforcement 10 | . 2 . . 1 . 4 2 . . . . 1 . . . . . . . . . . . Assault 5 | . . . . . . 3 1 . 1 . . . . . . . . . . . . . . Garrison 1 | . . . . 1 . . . . . . . . . . . . . . . . . . . Intercept . | . . . . . . . . . . . . . . . . . . . . . . . . Searches Triggered 3 | . . . . . . . 2 . . . . 1 . . . . . . . . . . . Data Miner Redirects 3 | . . . . . . . . . . . . 2 . . . . . 1 . . . . . Construction Impeded 1 | . . . . . . 1 . . . . . . . . . . . . . . . . . Haulers Reinforced . | . . . . . . . . . . . . . . . . . . . . . . . . Active Scanning Responses . | . . . . . . . . . . . . . . . . . . . . . . . . Cargo Convoy Interrupts 1 | . . . . . . . . . . . . 1 . . . . . . . . . . . Stealth | -11 -10 -9 -9 -8 -8 -8 -7 -7 -7 -7 -6 -6 -6 -6 -5 -5 -5 -5 -5 -5 -5 -4 -4 --------- Run | Jun Mat Mat Min Mat Gar Mat Fac Low Low Dat Pro Fac Low Zio Pro Fac Was Fac Upp Upp Zhi Pro Fac Distress Signals 13 | . 3 2 . 2 . 4 1 . . . . 1 . . . . . . . . . . . Communications Jammed 16 | . . . . . . . 2 . . . . 8 . . 1 1 . 4 . . . . . Distress Signals 13 | . . . . . . . 1 . . . . 7 . . . 1 . 4 . . . . . Times Spotted 416 | . 27 41 4 10 31 69 65 3 15 . 8 56 . . 13 13 6 31 2 5 . . 17 Peak Tracking Total 11 | . 4 9 3 6 9 11 9 4 10 . 3 8 . . 6 5 6 6 5 4 . . 11 Tactical Retreats 90 | . . 2 . . 4 12 21 1 4 . . 16 . . 2 4 . 13 4 4 . . 3 Traps | -11 -10 -9 -9 -8 -8 -8 -7 -7 -7 -7 -6 -6 -6 -6 -5 -5 -5 -5 -5 -5 -5 -4 -4 ------- Run | Jun Mat Mat Min Mat Gar Mat Fac Low Low Dat Pro Fac Low Zio Pro Fac Was Fac Upp Upp Zhi Pro Fac Traps Triggered 30 | . 4 2 . . 2 1 7 . . . . 6 . . . 3 . 3 . . . . 2 Indirectly . | . . . . . . . . . . . . . . . . . . . . . . . . Trap Hack Attempts . | . . . . . . . . . . . . . . . . . . . . . . . . Triggered . | . . . . . . . . . . . . . . . . . . . . . . . . Disarmed . | . . . . . . . . . . . . . . . . . . . . . . . . Reprogrammed 14 | . . . . . . . 4 . . . . 10 . . . . . . . . . . . Reused 4 | . . . . . . . . . . . . 4 . . . . . . . . . . . Traps Extracted . | . . . . . . . . . . . . . . . . . . . . . . . . Installed . | . . . . . . . . . . . . . . . . . . . . . . . . Triggered 8 | . . . . . . . . . . . . 5 . . . . . . . 2 . 1 . Machines | -11 -10 -9 -9 -8 -8 -8 -7 -7 -7 -7 -6 -6 -6 -6 -5 -5 -5 -5 -5 -5 -5 -4 -4 ---------- Run | Jun Mat Mat Min Mat Gar Mat Fac Low Low Dat Pro Fac Low Zio Pro Fac Was Fac Upp Upp Zhi Pro Fac Machines Disabled 18 | . . . . . 2 8 8 . . . . . . . . . . . . . . . . Max in Single Turn 5 | . . . . . 1 2 5 . . . . . . . . . . . . . . . . Garrison Access 6 | . . . . . . . 2 . . . . 2 . . . 1 . 1 . . . . . Garrison Relay 2 | . . . . . 2 . . . . . . . . . . . . . . . . . . Machines Repaired . | . . . . . . . . . . . . . . . . . . . . . . . . Machines Sabotaged . | . . . . . . . . . . . . . . . . . . . . . . . . Overloaded Fab Kills . | . . . . . . . . . . . . . . . . . . . . . . . . Hacking | -11 -10 -9 -9 -8 -8 -8 -7 -7 -7 -7 -6 -6 -6 -6 -5 -5 -5 -5 -5 -5 -5 -4 -4 --------- Run | Jun Mat Mat Min Mat Gar Mat Fac Low Low Dat Pro Fac Low Zio Pro Fac Was Fac Upp Upp Zhi Pro Fac Machines Accessed 166 | . 7 14 . 1 . 12 35 . . 4 . 38 . 1 . 13 . 28 1 . 7 . 5 Terminals 90 | . 5 11 . . . 7 18 . . . . 21 . . . 8 . 15 . . . . 5 Fabricators 8 | . . . . . . . 3 . . . . 3 . . . . . 2 . . . . . Repair Stations 12 | . 1 1 . . . 2 3 . . . . 2 . . . 1 . 2 . . . . . Recycling Units 21 | . 1 2 . . . 1 5 . . . . 6 . . . 2 . 4 . . . . . Scanalyzers 14 | . . . . . . 2 4 . . . . 3 . . . 1 . 4 . . . . . Garrison Access 8 | . . . . 1 . . 2 . . . . 3 . . . 1 . 1 . . . . . Total Hacks 635 | . 15 46 . 1 . 44 133 . . 28 . 156 . 2 . 41 . 97 1 . 21 . 50 Successful 434 | . 4 22 . 1 . 25 79 . . 28 . 106 . 2 . 33 . 75 1 . 21 . 37 Failed 200 | . 11 24 . . . 19 54 . . . . 50 . . . 8 . 22 . . . . 12 Catastrophic 30 | . 6 5 . . . 4 7 . . . . 7 . . . . . 1 . . . . . Database Lockouts 1 | . . . . . . . . . . . . . . . . . . . . . . . 1 Manual 308 | . 12 26 . . . 24 69 . . . . 73 . 3 . 25 . 45 . . . . 31 Terminals 341 | . 11 33 . . . 23 55 . . . . 94 . . . 23 . 52 . . . . 50 Fabricators 31 | . . . . . . . 13 . . . . 10 . . . . . 8 . . . . . Repair Stations 58 | . 2 2 . . . 9 25 . . . . 9 . . . 4 . 7 . . . . . Recycling Units 81 | . 2 11 . . . 3 21 . . . . 21 . . . 9 . 14 . . . . . Scanalyzers 59 | . . . . . . 9 16 . . . . 16 . . . 3 . 15 . . . . . Garrison Access 13 | . . . . 1 . . 3 . . . . 6 . . . 2 . 1 . . . . . Terminal Hacks 177 | . 1 11 . . . 5 12 . . 28 . 42 . 2 . 5 . 21 1 . 21 . 28 Record 26 | . . . . . . . . . . 11 . 2 . . . . . 1 . . 9 . 3 Part Schematic 22 | . . 3 . . . . . . . 9 . 1 . 2 . . . 2 . . 4 . 1 Robot Schematic 6 | . . . . . . . . . . 5 . 1 . . . . . . . . . . . Robot Analysis 8 | . . 1 . . . . . . . . . 1 . . . . . . . . 4 . 2 Prototype ID Bank 12 | . . 2 . . . . . . . 3 . 1 . . . . . . . . 4 . 2 Open Door 1 | . . . . . . . . . . . . . . . . . . . 1 . . . . Open DSF 2 | . . . . . . . . . . . . 2 . . . . . . . . . . . Level Access Points 1 | . . . . . . . . . . . . 1 . . . . . . . . . . . Branch Access Points 6 | . . 1 . . . 1 1 . . . . 1 . . . . . 1 . . . . 1 Machine Index 2 | . . . . . . . . . . . . . . . . . . . . . . . 2 Terminal Index 7 | . 1 1 . . . 1 1 . . . . 1 . . . . . 1 . . . . 1 Fabricator Index 3 | . . . . . . . . . . . . 1 . . . . . 1 . . . . 1 Scanalyzer Index 1 | . . . . . . . . . . . . . . . . . . 1 . . . . . Garrison Index 2 | . . . . . . . . . . . . . . . . . . 1 . . . . 1 Alert Level 6 | . . . . . . . . . . . . 3 . . . . . 1 . . . . 2 Unreport Threat 10 | . . . . . . 2 3 . . . . 1 . . . 1 . 3 . . . . . Locate Traps 5 | . . . . . . . 1 . . . . 3 . . . 1 . . . . . . . Reprogram Traps 3 | . . . . . . . 1 . . . . 2 . . . . . . . . . . . Dispatch Records 5 | . . 1 . . . . . . . . . 2 . . . 1 . . . . . . 1 Maintenance Status 1 | . . . . . . . . . . . . 1 . . . . . . . . . . . Security Status 3 | . . . . . . . 1 . . . . 1 . . . 1 . . . . . . . Surveillance Status 1 | . . . . . . . . . . . . 1 . . . . . . . . . . . Patrol Status 5 | . . . . . . . 1 . . . . 1 . . . . . 1 . . . . 2 Investigation Status 4 | . . . . . . . . . . . . 2 . . . . . 1 . . . . 1 Reinforcement Status 2 | . . . . . . . . . . . . 1 . . . . . . . . . . 1 Assault Status 2 | . . . . . . . . . . . . 1 . . . . . . . . . . 1 Garrison Status 1 | . . . . . . . . . . . . 1 . . . . . . . . . . . Intercept Status 1 | . . . . . . . . . . . . . . . . . . . . . . . 1 Recall Investigation 9 | . . 1 . . . . 2 . . . . 3 . . . . . 3 . . . . . Recall Assault 2 | . . . . . . . 1 . . . . 1 . . . . . . . . . . . Hauler Manifests 2 | . . 1 . . . . . . . . . 1 . . . . . . . . . . . Registered Components 2 | . . . . . . 1 . . . . . . . . . . . 1 . . . . . Registered Prototypes 1 | . . . . . . . . . . . . . . . . . . . . . . . 1 Zone Layout 13 | . . . . . . . . . . . . 5 . . . 1 . 3 . . . . 4 Fabricator Hacks 16 | . . . . . . . 3 . . . . 6 . . . . . 7 . . . . . Network Status 1 | . . . . . . . 1 . . . . . . . . . . . . . . . . Load Schematic 8 | . . . . . . . 1 . . . . 3 . . . . . 4 . . . . . Build 7 | . . . . . . . 1 . . . . 3 . . . . . 3 . . . . . Repair Station Hacks 47 | . 2 . . . . 8 18 . . . . 9 . . . 4 . 6 . . . . . Scan Component 24 | . 1 . . . . 4 10 . . . . 4 . . . 2 . 3 . . . . . Repair 22 | . 1 . . . . 4 8 . . . . 4 . . . 2 . 3 . . . . . Refit 1 | . . . . . . . . . . . . 1 . . . . . . . . . . . Recycling Unit Hacks 24 | . 1 3 . . . . 5 . . . . 7 . . . 3 . 5 . . . . . Process 2 | . . . . . . . 1 . . . . . . . . 1 . . . . . . . Report Inventory 10 | . . 1 . . . . 2 . . . . 5 . . . 1 . 1 . . . . . Retrieve Matter 2 | . . . . . . . 1 . . . . . . . . 1 . . . . . . . Retrieve Components 10 | . 1 2 . . . . 1 . . . . 2 . . . . . 4 . . . . . Scanalyzer 49 | . . . . . . 9 14 . . . . 9 . . . 2 . 15 . . . . . Insert Component 23 | . . . . . . 4 7 . . . . 5 . . . 1 . 6 . . . . . Analyze 26 | . . . . . . 5 7 . . . . 4 . . . 1 . 9 . . . . . Garrison Access Hacks 6 | . . . . 1 . . 1 . . . . 2 . . . 1 . 1 . . . . . Unlock Access 1 | . . . . 1 . . . . . . . . . . . . . . . . . . . Seal Access 5 | . . . . . . . 1 . . . . 2 . . . 1 . 1 . . . . . Unauthorized Hacks 115 | . . 8 . . . 3 26 . . . . 31 . . . 18 . 20 . . . . 9 Terminals 74 | . . 3 . . . 3 14 . . . . 18 . . . 12 . 15 . . . . 9 Track 8 | . . . . . . . . . . . . 2 . . . 2 . 2 . . . . 2 Assimilate 12 | . . . . . . . 3 . . . . 4 . . . 1 . 4 . . . . . Botnet 48 | . . 3 . . . 3 11 . . . . 11 . . . 8 . 8 . . . . 4 Disrupt 2 | . . . . . . . . . . . . . . . . . . 1 . . . . 1 Operators 4 | . . . . . . . . . . . . 1 . . . 1 . . . . . . 2 Fabricators 5 | . . . . . . . 3 . . . . 2 . . . . . . . . . . . Fabnet 5 | . . . . . . . 3 . . . . 2 . . . . . . . . . . . Repair Stations . | . . . . . . . . . . . . . . . . . . . . . . . . Recycling Units 34 | . . 5 . . . . 8 . . . . 11 . . . 5 . 5 . . . . . Monitor 5 | . . 1 . . . . 1 . . . . 2 . . . 1 . . . . . . . Reject 12 | . . 2 . . . . 2 . . . . 4 . . . 2 . 2 . . . . . Mask 17 | . . 2 . . . . 5 . . . . 5 . . . 2 . 3 . . . . . Scanalyzers 1 | . . . . . . . . . . . . . . . . 1 . . . . . . . Researchers 1 | . . . . . . . . . . . . . . . . 1 . . . . . . . Garrison Access 1 | . . . . . . . 1 . . . . . . . . . . . . . . . . Jam 1 | . . . . . . . 1 . . . . . . . . . . . . . . . . Data Cores Recovered 1 | . . . . . . 1 . . . . . . . . . . . . . . . . . Used . | . . . . . . . . . . . . . . . . . . . . . . . . Hacking Detections 134 | . 7 14 . . . 10 31 . . . . 30 . . . 12 . 25 . . . . 5 Full Trace Events 12 | . 2 . . . . . 1 . . . . 4 . . . . . 5 . . . . . Feedback Events . | . . . . . . . . . . . . . . . . . . . . . . . . Feedback Blocked . | . . . . . . . . . . . . . . . . . . . . . . . . Robot Schematics Acquired 9 | . . . . . . . . . . 5 . 1 . 3 . . . . . . . . . Robots Built . | . . . . . . . . . . . . . . . . . . . . . . . . Authchips . | . . . . . . . . . . . . . . . . . . . . . . . . Time . | . . . . . . . . . . . . . . . . . . . . . . . . Total Robot Build Rating . | . . . . . . . . . . . . . . . . . . . . . . . . Part Schematics Acquired 55 | . . 3 . . . 4 5 . . 9 . 4 . 17 . . . 8 . . 4 . 1 Parts Built 7 | . . . . . . . 1 . . . . 3 . . . . . 3 . . . . . Authchips 1 | . . . . . . . . . . . . . . . . . . 1 . . . . . Time 375 | . . . . . . . 73 . . . . 143 . . . . . 159 . . . . . Total Part Build Rating 32 | . . . . . . . 3 . . . . 11 . . . . . 18 . . . . . Parts Repaired 21 | . 1 . . . . 3 8 . . . . 4 . . . 2 . 3 . . . . . Time 830 | . 26 . . . . 122 346 . . . . 149 . . . 108 . 79 . . . . . Parts Recycled . | . . . . . . . . . . . . . . . . . . . . . . . . Recycled Matter 132 | . . . . . . . 48 . . . . . . . . 84 . . . . . . . Retrieved Matter 132 | . . . . . . . 48 . . . . . . . . 84 . . . . . . . Retrieved Components 28 | . 10 11 . . . . 2 . . . . 5 . . . . . . . . . . . Parts Scanalyzed 22 | . . . . . . 4 6 . . . . 5 . . . 1 . 6 . . . . . Part Schematics Acquired 18 | . . . . . . 4 5 . . . . 3 . . . . . 6 . . . . . Parts Damaged . | . . . . . . . . . . . . . . . . . . . . . . . . Bothacking | -11 -10 -9 -9 -8 -8 -8 -7 -7 -7 -7 -6 -6 -6 -6 -5 -5 -5 -5 -5 -5 -5 -4 -4 ------------ Run | Jun Mat Mat Min Mat Gar Mat Fac Low Low Dat Pro Fac Low Zio Pro Fac Was Fac Upp Upp Zhi Pro Fac Used RIF Installer . | . . . . . . . . . . . . . . . . . . . . . . . . Robots Hacked 13 | . . . . . . . 1 . . . 2 4 . . . 1 . 2 . 2 . . 1 Non-combat 1 | . . . . . . . 1 . . . . . . . . . . . . . . . . Combat 12 | . . . . . . . . . . . 2 4 . . . 1 . 2 . 2 . . 1 Robot Hacks Applied 1 | . . . . . . . 1 . . . . . . . . . . . . . . . . find_recycling 1 | . . . . . . . 1 . . . . . . . . . . . . . . . . Relay Couplers Released 11 | . . . . . 8 . 3 . . . . . . . . . . . . . . . . Machine Destruction 8 | . . . . . 8 . . . . . . . . . . . . . . . . . . Programmers 3 | . . . . . . . 3 . . . . . . . . . . . . . . . . Fabnet Peak Effective % 9 | . . . . . . . . . . . 9 9 9 9 9 9 9 9 9 9 9 2 2 Autooverrided 12 | . . . . . . . . . . . 2 4 . . . 1 . 2 . 2 . . 1 Robots Rewired . | . . . . . . . . . . . . . . . . . . . . . . . . Allies Hacked . | . . . . . . . . . . . . . . . . . . . . . . . . Hacks Repelled . | . . . . . . . . . . . . . . . . . . . . . . . . Allies | -11 -10 -9 -9 -8 -8 -8 -7 -7 -7 -7 -6 -6 -6 -6 -5 -5 -5 -5 -5 -5 -5 -4 -4 -------- Run | Jun Mat Mat Min Mat Gar Mat Fac Low Low Dat Pro Fac Low Zio Pro Fac Was Fac Upp Upp Zhi Pro Fac Total Allies 31 | . . . 3 . . . 2 . . . 3 8 . 5 . 2 . 5 . 2 . . 1 Largest Group 5 | . . . 3 3 . . 1 . . . 3 3 . 5 5 1 . 3 . 2 . . 1 Highest-Rated Group 154 | . . . 40 40 . . 10 . . . 154 77 . 138 138 26 . 85 . 76 . . 30 Highest-Rated Ally 96 | . . . 16 16 . . 10 . . . 96 41 . 31 31 26 . 54 . 47 . . 30 Total Orders 5 | . . . . . . . 1 . . . . 2 . . . 1 . 1 . . . . . STAY 5 | . . . . . . . 1 . . . . 2 . . . 1 . 1 . . . . . Ally Attacks 102 | . . . . 18 . . . . . . 26 7 . . 36 1 . 3 . 8 . . 3 Total Damage 1587 | . . . . 181 . . . . . . 519 140 . . 467 14 . 23 . 151 . . 92 Kills 13 | . . . . . . . . . . . 6 2 . . 4 . . . . 1 . . . Allies Corrupted 1 | . . . . . . . . . . . . 1 . . . . . . . . . . . Allies Melted . | . . . . . . . . . . . . . . . . . . . . . . . . Intel | -11 -10 -9 -9 -8 -8 -8 -7 -7 -7 -7 -6 -6 -6 -6 -5 -5 -5 -5 -5 -5 -5 -4 -4 ------- Run | Jun Mat Mat Min Mat Gar Mat Fac Low Low Dat Pro Fac Low Zio Pro Fac Was Fac Upp Upp Zhi Pro Fac Robot Analysis Total 8 | . . 1 . . . . . . . . . 1 . . . . . . . . 4 . 2 Derelict Logs Recovered 8 | . . . 1 . . . . . . . . . . . 2 . . . 1 2 . 2 . Drone Launches . | . . . . . . . . . . . . . . . . . . . . . . . . Drone Recoveries . | . . . . . . . . . . . . . . . . . . . . . . . . Exploration | -11 -10 -9 -9 -8 -8 -8 -7 -7 -7 -7 -6 -6 -6 -6 -5 -5 -5 -5 -5 -5 -5 -4 -4 ------------- Run | Jun Mat Mat Min Mat Gar Mat Fac Low Low Dat Pro Fac Low Zio Pro Fac Was Fac Upp Upp Zhi Pro Fac Turns Passed 18088 | 2 2136 2480 690 61 1526 2281 2866 131 131 21 224 1714 21 368 155 520 18 1635 129 182 80 202 515 Spaces Moved 21616 | 2 650 752 283 17 480 904 4190 444 480 78 479 3976 59 897 488 1211 67 3510 373 559 215 433 1069 Core 137 | . 1 . . . . . 2 . . . . . . . . . . . . . . . 134 Treads 3354 | . 505 752 283 17 480 817 500 . . . . . . . . . . . . . . . . Legs 146 | 2 144 . . . . . . . . . . . . . . . . . . . . . . Wheels 87 | . . . . . . 87 . . . . . . . . . . . . . . . . . Hover 10 | . . . . . . . . . . . . 10 . . . . . . . . . . . Flight 17882 | . . . . . . . 3688 444 480 78 479 3966 59 897 488 1211 67 3510 373 559 215 433 935 Fastest Speed 14 | 120 120 240 240 240 240 160 14 14 14 26 14 14 29 29 23 23 23 23 25 25 27 27 24 Average Speed 62 | 120 280 264 240 240 240 198 50 25 23 26 25 29 29 29 28 25 24 26 25 25 27 27 28 Slowest Speed 1400 | 120 1400 480 240 240 240 320 315 26 26 26 26 60 29 29 97 26 26 28 25 27 27 27 295 Overloaded Moves 895 | . . . . . . . 120 33 106 . 31 433 . . 78 43 40 11 . . . . . Propulsion Burnouts 1 | . . . . . . . . . . . . 1 . . . . . . . . . . . Robots Hopped 130 | . . . . . . . 54 1 1 . . 32 . . . 6 . 27 . . . . 9 Cave-ins Triggered . | . . . . . . . . . . . . . . . . . . . . . . . . Teleports 1 | . . . . . . . . . . . . . . . . . . . . . 1 . . Exploration Rate (%) 58 | 2 97 70 60 4 51 75 80 61 64 69 64 84 9 86 73 34 82 65 54 76 62 66 26 Regions Visited 23 Branch Regions 12 Pre-discovered Areas 8 | . . . 1 . . . . 1 . 1 . . . 2 . . . . . . 3 . . Known Exits Taken 13 | . . 1 . 1 . . 1 1 . . . 1 1 1 1 . . 1 1 1 1 1 . Unknown Exits Taken 7 | 1 1 . 1 . . 1 . . 1 1 1 . . . . . . . . . . . . Scrap Searched 19 | . . . . . . . . 1 2 . 4 . . 5 3 . . . 1 2 . 1 . Spaces Dug 238 | . 5 4 . . 12 4 42 . . . 1 74 . . . 12 . 72 . 2 . . 10 Terrain Destroyed 598 | . 21 32 24 . 39 172 71 . . . 1 74 . . . 12 . 89 33 20 . . 10 Melee 197 | . 5 4 . . . 1 33 . . . 1 74 . . . 12 . 55 . 2 . . 10 Projectile 18 | . . 17 . . . 1 . . . . . . . . . . . . . . . . . AOE 383 | . 16 11 24 . 39 170 38 . . . . . . . . . . 34 33 18 . . . Terrain Rammed . | . . . . . . . . . . . . . . . . . . . . . . . . Walls Destroyed . | . . . . . . . . . . . . . . . . . . . . . . . . Machines Disabled . | . . . . . . . . . . . . . . . . . . . . . . . . Actions | -11 -10 -9 -9 -8 -8 -8 -7 -7 -7 -7 -6 -6 -6 -6 -5 -5 -5 -5 -5 -5 -5 -4 -4 --------- Run | Jun Mat Mat Min Mat Gar Mat Fac Low Low Dat Pro Fac Low Zio Pro Fac Was Fac Upp Upp Zhi Pro Fac Total 24832 | 1 845 1038 291 26 682 1226 4776 456 493 77 573 4333 62 1006 503 1383 68 4047 394 587 235 511 1219 Wait 1653 | . 61 77 5 . 2 100 353 4 11 . 84 187 2 95 9 123 . 401 10 19 . 74 36 Move 21342 | 1 649 751 282 16 479 903 4084 441 477 77 478 3913 58 896 487 1200 66 3456 372 558 214 432 1052 Hop 122 | . . . . . . . 51 1 1 . . 30 . . . 5 . 26 . . . . 8 Pick Up 213 | . 28 24 . 1 30 27 22 2 . . 3 21 . 6 1 3 1 17 . . 7 1 19 Fast Attach 120 | . 12 8 . . 2 12 24 1 . . . 19 . . 3 7 . 15 2 . 5 . 10 Attach 71 | . 2 8 . 2 13 3 10 . . . . 12 1 1 . 2 . 4 . . 2 . 11 Detach 15 | . 1 . . . 1 2 1 . . . . 3 1 1 . . . 2 . . . . 3 Swap 196 | . 12 28 1 1 33 40 29 1 3 . . 12 . 1 . 5 . 20 . 3 2 . 5 Drop 257 | . 12 27 . . 28 40 46 3 . . 3 26 . 5 3 7 1 23 2 2 5 1 23 Fire 330 | . 48 93 3 6 45 91 37 . . . . . . . . . . 2 4 1 . . . Melee 326 | . 10 12 . . 47 3 39 3 1 . 5 92 . 1 . 13 . 63 4 4 . 3 26 Ram 15 | . . . . . . . . . . . . . . . . . . . . . . . 15 Kick 5 | . 5 . . . . . . . . . . . . . . . . . . . . . . Crush 21 | . 5 10 . . . 5 1 . . . . . . . . . . . . . . . . Escape Stasis 146 | . . . . . 2 . 79 . . . . 18 . . . 18 . 18 . . . . 11 Rewire . | . . . . . . . . . . . . . . . . . . . . . . . . Trap . | . . . . . . . . . . . . . . . . . . . . . . . . Miscellaneous . | . . . . . . . . . . . . . . . . . . . . . . . . Route ------- -11/Junkyard -10/Materials (discovered 4 exits: *Mat x3 / [*Min]) -9/Materials (discovered 2 exits: *Mat / *Min) -9/Mines (discovered 2 exits: *Mat x2) -8/Materials -8/Garrison -8/Materials (discovered 4 exits: *Fac x2 / *Sto x2) -7/Factory (discovered 4 exits: *Fac x2 / *Low x2) -7/Lower Caves -7/Lower Caves -7/Data Miner -6/Proximity Caves -6/Factory (discovered 6 exits: *Fac x4 / *Low x2) -6/Lower Caves -6/Zion -5/Proximity Caves -5/Factory -5/Waste -5/Factory (discovered 5 exits: *Fac x3 / *Upp x2) -5/Upper Caves -5/Upper Caves (discovered 2 exits: *Fac / *Zhi) -5/Zhirov -4/Proximity Caves -4/Factory (discovered 5 exits: Upp x2 / Ext x2 / Arm) History --------- Turn | Location | Event 1 | -11/Junkyard | Discovered new exit (range 1) 3 | -11/Junkyard | Entered Materials 306 | -10/Materials | Build established: Mutant 309 | -10/Materials | Repaired Lgt. Treads 431 | -10/Materials | Discovered new exit (range 16) 492 | -10/Materials | Discovered new exit (range 16) 1260 | -10/Materials | Discovered new exit (range 16) 1714 | -10/Materials | Discovered new exit (range 4) 2139 | -10/Materials | Entered another Materials area 2139 | -9/Materials | Evolved 2 slots: Propulsion x1, Utility x1 2568 | -9/Materials | Build established: Scavenger-Mutant 2726 | -9/Materials | Lost 4 parts (1p3u) 2857 | -9/Materials | Identified exit to Mines 3059 | -9/Materials | Discovered new exit (range 9) 3434 | -9/Materials | Build established: Mutant 3978 | -9/Materials | Build established: Scavenger-Mutant 4619 | -9/Materials | Entered Mines 4643 | -9/Mines | Met a Derelict bent on vengeance 4712 | -9/Mines | Found a hidden stash of uninstalled traps 4715 | -9/Mines | Assembled infested the area 5005 | -9/Mines | Discovered new exit (range 10) 5006 | -9/Mines | Learned location of Storage (-8) 5222 | -9/Mines | Learned location of 1 exit from Lower Caves 5237 | -9/Mines | Discovered new exit (range 8) 5258 | -9/Mines | Assisted by bots powering up and referring to "LRC-V3" 5309 | -9/Mines | Entered Materials 5309 | -8/Materials | Accompanied by 3 allies 5309 | -8/Materials | Evolved 2 slots: Propulsion x1, Utility x1 5346 | -8/Materials | Garrison activated, responded to threat 5368 | -8/Materials | Identified exit to Garrison 5370 | -8/Materials | Entered Garrison 5447 | -8/Garrison | Lost 4 parts (1p2n1u) 5592 | -8/Garrison | Garrison Relay disabled 5740 | -8/Garrison | Triggered checkpoint 5787 | -8/Garrison | Destroyed 8 combat bots 6114 | -8/Garrison | Triggered checkpoint 6778 | -8/Garrison | Triggered checkpoint 6870 | -8/Garrison | Discovered new exit (range 12) 6896 | -8/Garrison | Entered Materials 7149 | -8/Materials | Core integrity fell below 50% 7296 | -8/Materials | Lost 3 parts (1p1n1w) 7499 | -8/Materials | Repaired Lgt. Treads 7527 | -8/Materials | Repaired Lgt. Treads 7554 | -8/Materials | Repaired Lgt. Treads 7935 | -8/Materials | Discovered new exit (range 7) 7992 | -8/Materials | Build established: Mutant 8096 | -8/Materials | First assault squad dispatched 8291 | -8/Materials | Identified exit to Storage 8443 | -8/Materials | Discovered new exit (range 9) 8981 | -8/Materials | Core integrity fell below 20% 9177 | -8/Materials | Entered Factory 9177 | -7/Factory | Evolved 2 slots: Utility x2 9205 | -7/Factory | Discovered new exit (range 5) 9286 | -7/Factory | Repaired Med. Treads 9325 | -7/Factory | Repaired Arm. Treads 9373 | -7/Factory | Repaired Gauss Rifle 9418 | -7/Factory | Repaired Med. Treads 9463 | -7/Factory | Repaired Lyr. Light Armor Plating 9508 | -7/Factory | Repaired Imp. Deuterium Engine 9538 | -7/Factory | Build established: Hacker-Mutant 10042 | -7/Factory | Discovered new exit (range 7) 10351 | -7/Factory | Repaired Med. Treads 10777 | -7/Factory | First assault squad dispatched 11044 | -7/Factory | Build established: Hacker-Sprinter 11577 | -7/Factory | Search patrols dispatched 11664 | -7/Factory | Fabricated Hacking Suite (x1) 11734 | -7/Factory | Repaired Lyr. Light Armor Plating 11922 | -7/Factory | Discovered new exit (range 14) 11946 | -7/Factory | Identified exit to Lower Caves 11977 | -7/Factory | Search patrols dispatched 12043 | -7/Factory | Entered Lower Caves 12044 | -7/Lower Caves | Identified exit to Lower Caves 12050 | -7/Lower Caves | Met a Warlord Commander 12051 | -7/Lower Caves | Learned location of Warlord (-4) 12053 | -7/Lower Caves | Found Encrypted Comm Array 12174 | -7/Lower Caves | Entered another Lower Caves area 12208 | -7/Lower Caves | Encountered a Warlord checkpoint 12234 | -7/Lower Caves | Spotted B-75 Beast 12251 | -7/Lower Caves | Attracted the attention of an 0b10 outpost 12259 | -7/Lower Caves | Core integrity fell below 50% 12288 | -7/Lower Caves | Discovered new exit (range 7) 12305 | -7/Lower Caves | Entered Data Miner 12305 | -7/Data Miner | Discovered new exit (range 6) 12310 | -7/Data Miner | Met Data Miner 12316 | -7/Data Miner | Learned location of Section 7 (-2) 12316 | -7/Data Miner | Acquired the access code to Warlord's prototype stash 12320 | -7/Data Miner | Received God Mode back door access code from Data Miner 12326 | -7/Data Miner | Entered Proximity Caves 12394 | -6/Proximity Caves | Escorted by Enhanced Grunt 12465 | -6/Proximity Caves | Discovered new exit (range 3) 12550 | -6/Proximity Caves | Entered Factory 12550 | -6/Factory | Evolved 2 slots: Power x1, Utility x1 12766 | -6/Factory | Spotted B-75 Beast 12802 | -6/Factory | Identified exit to Lower Caves 12802 | -6/Factory | Identified exit to Factory 12993 | -6/Factory | Incoming investigation squad redirected 13050 | -6/Factory | Repaired Cld. VTOL Module 13218 | -6/Factory | Cargo convoy interrupted 13247 | -6/Factory | Incoming assault squad redirected 13300 | -6/Factory | Lost 5 parts (4n1w) 13377 | -6/Factory | Fabricated Imp. Hacking Suite? 13429 | -6/Factory | Lost 5 parts (2p1n2u) 13517 | -6/Factory | Build established: Hacker-Mutant 13600 | -6/Factory | Search patrols dispatched 13701 | -6/Factory | Fabricated Imp. VTOL Module? 13806 | -6/Factory | Repaired Cld. VTOL Module 13827 | -6/Factory | Repaired Adv. Weight Redist. System 13853 | -6/Factory | Repaired Gravmag Array 14075 | -6/Factory | Fabricated Imp. VTOL Module (x1) 14134 | -6/Factory | Build established: Hacker-Sprinter 14222 | -6/Factory | Core integrity fell below 50% 14264 | -6/Factory | Entered Lower Caves 14265 | -6/Lower Caves | A Derelict revealed a hidden shortcut to a safe place 14278 | -6/Lower Caves | Identified exit to Zion 14285 | -6/Lower Caves | Entered Zion 14295 | -6/Zion | System corruption cleaned by Quarantine Array 14303 | -6/Zion | Gained Derelict followers 14309 | -6/Zion | Discovered new exit (range 13) 14312 | -6/Zion | Identified exit to Proximity Caves 14401 | -6/Zion | Found CR-A16's Pointy Stick 14417 | -6/Zion | Given the Hacking Drone Bay 14418 | -6/Zion | Found Prototype Device 14425 | -6/Zion | Learned location of Armory (-4) 14448 | -6/Zion | Learned location of Quarantine (-3) 14455 | -6/Zion | Learned Factory emergency access door positions 14514 | -6/Zion | Received a hallucinogenic algorithm 14653 | -6/Zion | Entered Proximity Caves 14653 | -5/Proximity Caves | Accompanied by 5 allies 14662 | -5/Proximity Caves | Learned Factory terminal intel 14764 | -5/Proximity Caves | Attracted the attention of an 0b10 checkpoint 14799 | -5/Proximity Caves | Learned Factory stockpile data 14802 | -5/Proximity Caves | Discovered exit to Factory (range 3) 14808 | -5/Proximity Caves | Entered Factory 14808 | -5/Factory | Evolved 2 slots: Propulsion x1, Utility x1 14811 | -5/Factory | Loaded intel: 26 terminal locations 14844 | -5/Factory | Discovered new exit (range 2) 14844 | -5/Factory | Identified exit to Factory 15019 | -5/Factory | Repaired Hrd. Medium Armor Plating 15090 | -5/Factory | Repaired Cld. VTOL Module 15145 | -5/Factory | Spotted B-75 Beast 15222 | -5/Factory | Local machine network offline 15328 | -5/Factory | Sucked down chute 15328 | -5/Factory | Entered Waste 15337 | -5/Waste | Spotted C-40 Crusher 15339 | -5/Waste | Spotted C-40 Crusher 15339 | -5/Waste | Spotted C-40 Crusher 15339 | -5/Waste | Spotted C-40 Crusher 15339 | -5/Waste | Spotted C-40 Crusher 15340 | -5/Waste | Discovered new exit (range 15) 15340 | -5/Waste | Spotted C-40 Crusher 15343 | -5/Waste | EMP discharged 15346 | -5/Waste | Identified exit to Factory 15346 | -5/Waste | Entered Factory 15444 | -5/Factory | Discovered exit to Factory (range 15) 15453 | -5/Factory | Incoming investigation squad redirected 15462 | -5/Factory | Identified exit to Upper Caves 16212 | -5/Factory | Fabricated Adv. System Shield? 16294 | -5/Factory | Discovered exit to Factory (range 14) 16322 | -5/Factory | Repaired Lgt. Angular Momentum Engine 16486 | -5/Factory | Fabricated Adv. Hacking Suite? 16608 | -5/Factory | Repaired Cld. VTOL Module 16656 | -5/Factory | Repaired Adv. System Restoration Module 16689 | -5/Factory | Found Prototype Launcher 16689 | -5/Factory | Identified Mni. Smartbomb Launcher 16698 | -5/Factory | Discovered exit to Factory (range 15) 16763 | -5/Factory | Fabricated Adv. Hacking Suite? 16981 | -5/Factory | Entered Upper Caves 17081 | -5/Upper Caves | Discovered new exit (range 14) 17109 | -5/Upper Caves | Identified exit to Upper Caves 17110 | -5/Upper Caves | Entered another Upper Caves area 17113 | -5/Upper Caves | Discovered exit to Factory (range 14) 17141 | -5/Upper Caves | Attracted the attention of an 0b10 checkpoint 17151 | -5/Upper Caves | Learned Factory stockpile data 17177 | -5/Upper Caves | Learned Factory security intel 17276 | -5/Upper Caves | Discovered new exit (range 14) 17288 | -5/Upper Caves | Identified exit to Zhirov 17292 | -5/Upper Caves | Entered Zhirov 17292 | -5/Zhirov | Discovered new exit (range 3) 17297 | -5/Zhirov | Met Zhirov 17302 | -5/Zhirov | Learned location of Testing (-2) 17302 | -5/Zhirov | Learned location of Command (-1) 17307 | -5/Zhirov | Zhirov requested help retrieving the SGEMP Prototype 17314 | -5/Zhirov | Found Alien Artifact 17314 | -5/Zhirov | Identified Integrated Dissipator 17314 | -5/Zhirov | Installed Integrated Dissipator, increased core heat dissipation (+20) 17320 | -5/Zhirov | Found Alien Artifact 17320 | -5/Zhirov | Identified Transdimensional Reconstructor 17320 | -5/Zhirov | Warped through subspace 17372 | -5/Zhirov | Identified exit to Proximity Caves 17372 | -5/Zhirov | Entered Proximity Caves 17468 | -4/Proximity Caves | Learned Research non-interactive machine intel 17474 | -4/Proximity Caves | Learned Research emergency access door positions 17567 | -4/Proximity Caves | Discovered exit to Factory (range 4) 17574 | -4/Proximity Caves | Entered Factory 17574 | -4/Factory | Evolved 2 slots: Utility x2 17588 | -4/Factory | Identified exit to Upper Caves 17588 | -4/Factory | Identified exit to Extension 17588 | -4/Factory | Identified exit to Armory 17789 | -4/Factory | Central database locked down 17854 | -4/Factory | Spotted B-86 Titan 17893 | -4/Factory | Build established: Wizard-Sprinter 17992 | -4/Factory | Core integrity fell below 50% 18038 | -4/Factory | Lost 15 parts (2p6n6u1w) 18048 | -4/Factory | System corruption reached 10% 18077 | -4/Factory | Core integrity fell below 20% 18089 | -4/Factory | Destroyed by P-70 Sage with Tesla Rifle Last Messages --------------- 18074_ ALERT: Rogue bot located, Programmers report to Factory Zone 8S. 18074_ K-01 Serf cleans the Construction Platform. 18074_ Slammed into P-70 Sage. 18074_ P-70 Sage knocked back. 18074_ Destabilizing: Core damaged (-46). 18075_ R-10 Processor destroyed. 18075_ Construction Platform disabled. 18075_ Slammed into K-01 Serf. 18076_ Slammed into G-67 Veteran. 18076_ Penetrated by Slug. 18083_ P-70 Sage resets G-67 Veteran, system corruption cleaned. 18084_ Chain reaction triggered in Lgt. Ion Engine. 18084_ K-01 Serf destroyed. 18086_ K-01 Serf collects debris. 18087_ U-05 Engineer lays Concrete. 18087_ Acquired Enh. Optical Array. 18088_ Slug penetrates Wall. 18088_ K-01 Serf collects debris. 18088_ U-05 Engineer lays Concrete. 18089_ Assembly Bed disabled. Map ----- +----------------------------------------------------+ | ???????????????????????????????????????? ? ??????? | | ??????????????????????????????????????##+#/??????? | | ??????????????????????????????###????# ??????? | | ????????????????????????????? ????# #?????? | | ??????????????????????????? ???? #?????? | | ???????????????????????????" ????# #?????? | | ?????????????????????? ????? ????# #?????? | | ????????????????????? """ #???# #?????? | | ?????????????????????? """ #???# #?????? | | ???????????????????????? """ #???# #?????? | | ????????????????????????? #???# #?????? | | ?????????? ??????????????? #???# #?????? | | ??????????? ???????????????? #???# +?????? | | ??????????? ???????????????? #???# #?????? | | ??????????? ???????????????? #???# #?????? | | ????????????? #################+##### ####### | | ????????????? p | | ?????????????? p R | | ??????????????/ k | | ?????????????/ "" = | | ????????????// "" u!p= | | ?????????? ? """ ;;########/########## | | ?????????# """ ## *= #?????? | | ?????????# """ ## =%!#?????? | | ?????????# =! ## "" """" #?????? | | ?????????# =@ k ## """"""" #?????? | | ?????????? """" """" !! ## """"""" #?????? | | ??????????????"" """" ## """"""" #?????? | | ???????????????" """ ## #?????? | | ???????????????" """" #########+#####?????? | | ???????????????" """" h???????? ????????? | | ??????????????"" """" ???????? ???????? | | ?????????????? ??????? ??????? | | ?????????????? ??????? #?????? | | ??????????????? ?????? #?????? | | ??????????????#####+################????? #?????? | | ?????????????????????????# #??? #?????? | | ?????????????????????????# #???? #?????? | | ?????????????????????????# + #?????? | | ?????????????????????????# # #?????? | | ?????????????????????????# = # #?????? | | ?????????????????????????# # #?????? | | ?????????????????????????# *# #?????? | | ?????????????????????????# ! # ##????? | | ?????????????????????????# # T#????? | | ?????????????????????????# # ?????? | | ?????????????????????????# # #?????? | | ??????????????????????????? ?# ####### | | ???????????????????????##???? ^ ???# # | | ???????????????????????#"######+###### # """ " | +----------------------------------------------------+ Best States ------------- Heat Dissipation 63 Energy Generation 35 Energy Capacity 520 Matter Stores 300 Matter Capacity 300 Sight Range 16 Robot Scan Range 16 Terrain Scan Density 10 ECM Strength 2 Jamming Range 16 Additional Mass Support 9 Corruption Containment 8 Armor Coverage 450 Resistance: KI 30 Utility Shielding 66 Evasion (%) 67 Targeting Accuracy 8 Melee Accuracy 8 Recoil Reduction 4 Salvage Targeting 1 Offensive Hacking 54 Defensive Hacking 20 Authchip Count 2 Item Schematics ----------------- Huge Storage Unit | -9/Materials | Hacked Sml. Storage Unit | -9/Materials | Hacked Hcp. Matter Pod | -9/Materials | Hacked Med. Treads | -8/Materials | Scanalyzed Arm. Treads | -8/Materials | Scanalyzed Adv. Weight Redist. System | -8/Materials | Scanalyzed Hacking Suite | -8/Materials | Scanalyzed Imp. VTOL Module | -7/Factory | Scanalyzed Imp. Utility Shielding | -7/Factory | Scanalyzed Transmission Jammer | -7/Factory | Scanalyzed Missile Launcher | -7/Factory | Scanalyzed Lyr. Light Armor Plating | -7/Factory | Scanalyzed Combat Drone Bay | -7/Data Miner | Free Lgt. Regenerative Plating | -7/Data Miner | Free Biomechanical Wings | -7/Data Miner | Free Gravity Neutralizer | -7/Data Miner | Free Force Rifle | -7/Data Miner | Free Field Propulsion Drive | -7/Data Miner | Free Imp. Component Analysis Suite | -7/Data Miner | Free KE Penetrator | -7/Data Miner | Free Hyp. Gauss Cannon | -7/Data Miner | Free Lrn. Missile Launcher | -6/Factory | Scanalyzed Imp. Hacking Suite | -6/Factory | Hacked Adv. ECM Suite | -6/Factory | Scanalyzed Adv. Signal Interpreter | -6/Factory | Scanalyzed Fission Core | -6/Zion | Archive Adv. Shield Generator | -6/Zion | Archive Imp. Arc Projector | -6/Zion | Archive Imp. Thermal Generator | -6/Zion | Archive Tesla Rifle | -6/Zion | Archive Thermal Shield | -6/Zion | Archive Adv. Actuator Array | -6/Zion | Archive Adv. Thermal Shield | -6/Zion | Archive Force Field | -6/Zion | Archive Adv. Plasma Cannon | -6/Zion | Archive Power Sword | -6/Zion | Archive Imp. Focal Shield | -6/Zion | Archive Mak. Hover Unit | -6/Zion | Archive Adv. Drone Bay | -6/Zion | Archive Phase Cannon | -6/Zion | Archive Hvy. Riot Gun | -6/Zion | Free Flamer | -6/Zion | Free Adv. Hacking Suite | -5/Factory | Hacked Adv. System Shield | -5/Factory | Hacked Enh. Nuclear Core | -5/Factory | Scanalyzed Imp. Transmission Jammer | -5/Factory | Scanalyzed Imp. System Restoration Module | -5/Factory | Scanalyzed Imp. Medium Armor Plating | -5/Factory | Scanalyzed Adv. System Restoration Module | -5/Factory | Scanalyzed Imp. Energy Well | -5/Factory | Scanalyzed Assault Drone Bay | -5/Zhirov | Free Exp. Heat Sink | -5/Zhirov | Free Exp. Optical Array | -5/Zhirov | Free Imp. Arc Thrower | -5/Zhirov | Free Q-thruster | -4/Factory | Hacked Robot Schematics ------------------ M-14 Sweeper | -7/Data Miner | Free B-48 Gladiator | -7/Data Miner | Free O-24 Administrator | -7/Data Miner | Free G-50 Soldier | -7/Data Miner | Free I-47 Archangel | -7/Data Miner | Free M-28 Smith | -6/Factory | Hacked L-41 Fighter | -6/Zion | Archive X-77 Beamer | -6/Zion | Archive Y-54 Guardian | -6/Zion | Archive Fabricated ------------ Hacking Suite | x1 | -7/Factory Imp. Hacking Suite | x1 | -6/Factory Imp. VTOL Module | x1 | -6/Factory Imp. VTOL Module | x1 | -6/Factory Adv. System Shield | x1 | -5/Factory | Authchip Adv. Hacking Suite | x1 | -5/Factory Adv. Hacking Suite | x1 | -5/Factory Alien Tech Used ----------------- Integrated Dissipator Transdimensional Reconstructor Achievements -------------- Origins Whoosh! Challenges ------------ None Game ------ Seed NodeGodDoublenader Manual? 0 Play Time 06:21:24 Cumulative 100.0 hours Start 2023.06.18 @ 09:24:52 End 2023.06.18 @ 16:15:32 Sessions 1 Manual Loads 0 Difficulty Rogue Special Mode None Game No. 49 Rogue 47 Adventurer 2 Explorer 0 Win Type - Total 3 Types 3/0/0/0/0/0/0/0/0 Lore% 54 Gallery% 64 Achievement% 51 Wizard Run 0 Options --------- ASCII 0 Keyboard 0 Movement Numpad Keybinds 0 Fullscreen 1 Font 24/Smallcaps Map View 76x50 Tactical HUD 1 Map Filters NONE Filters NONE Steam 1 RUN: 3f86e3ec-e872-4e7b-a318-9243f7a3094d